bitfinex-derivatives/quotes_SOLF0:USTF0_20240923
["timestamp","ask_amount","ask_price","bid_price","bid_amount"]
[1727125195659,9.64,143.47,143.39,9.64]
[1727125195962,9.64,143.45,143.39,9.64]
[1727125196162,9.64,143.45,143.42,3.4859]
[1727125196660,9.64,143.45,143.43,3.4857]
[1727125196961,9.64,143.45,143.41,9.64]
[1727125197164,11.0279,143.46,143.41,9.64]
[1727125198368,11.0279,143.46,143.44,3.4855]
[1727125198761,9.64,143.47,143.45,3.4853]
[1727125199664,9.64,143.48,143.45,9.64]
[1727125200072,9.64,143.48,143.43,9.64]
[1727125201964,2.8418,143.5,143.46,9.64]
[1727125203557,12.4818,143.5,143.46,9.64]
[1727125204370,12.4818,143.5,143.41,2.6385]
[1727125204671,12.4818,143.5,143.45,9.64]
[1727125205673,9.64,143.48,143.44,9.64]
[1727125206976,12.4818,143.5,143.45,9.64]
[1727125208367,1.4508,143.5,143.48,9.64]
[1727125210273,9.64,143.52,143.48,9.64]
[1727125210770,9.64,143.54,143.49,9.64]
[1727125210976,9.64,143.53,143.49,9.64]
[1727125212476,1.3303,143.57,143.49,9.64]
[1727125212671,9.64,143.54,143.49,9.64]
[1727125214982,9.64,143.56,143.52,9.64]
[1727125215878,10.9703,143.57,143.53,9.64]
[1727125216079,10.9703,143.57,143.52,9.64]
[1727125221181,10.9703,143.57,143.49,3.42524126]
[1727125221378,10.9703,143.57,143.52,9.64]
[1727125226587,1.3303,143.57,143.52,9.64]
[1727125227182,1.3303,143.57,143.54,9.64]
[1727125230100,1.3303,143.57,143.54,13.1231]
[1727125239912,4.8127,143.57,143.54,13.1231]
[1727125242311,1.3303,143.57,143.54,13.1231]
[1727125243908,1.3303,143.57,143.55,3.4829]
[1727125244417,1.3303,143.57,143.54,9.64]
[1727125244714,1.3303,143.57,143.49,3.42524126]
[1727125244715,1.3303,143.57,143.55,9.64]
[1727125245216,1.3303,143.57,143.56,3.4826]
[1727125251112,1.3303,143.57,143.55,3.4828]
[1727125251306,10.9703,143.57,143.49,3.40406997]
[1727125251508,9.64,143.52,143.49,3.40406997]
[1727125251711,9.64,143.52,143.48,3.4845]
[1727125252516,9.64,143.51,143.48,3.4845]
[1727125254318,9.64,143.51,143.47,3.4847]
[1727125254622,9.64,143.5,143.47,3.4847]
[1727125255316,9.64,143.48,143.42,7.41055231]
[1727125255516,9.64,143.47,143.43,9.64]
[1727125256408,2.7793,143.51,143.41,81.93412019]
[1727125256409,9.64,143.46,143.44,3.4854]
[1727125259524,9.64,143.46,143.43,3.4857]
[1727125260329,9.64,143.44,143.38,9.64]
[1727125260627,9.64,143.42,143.38,9.64]
[1727125261629,9.64,143.42,143.37,10.9975]
[1727125261927,9.64,143.42,143.4,3.4864]
[1727125264330,1.3568,143.45,143.38,9.64]
[1727125264531,9.64,143.41,143.36,9.64]
[1727125266527,9.64,143.41,143.39,3.4866]
[1727125268126,9.64,143.41,143.32,4.79676147]
[1727125268323,9.64,143.39,143.35,9.64]
[1727125268736,1.4694,143.44,143.36,9.64]
[1727125268939,9.64,143.41,143.36,9.64]
[1727125269137,1.4694,143.44,143.38,9.64]
[1727125269325,9.64,143.44,143.4,9.64]
[1727125270738,9.64,143.44,143.41,3.4862]
[1727125271638,9.64,143.44,143.42,3.486]
[1727125271826,9.64,143.46,143.41,9.64]
[1727125272237,9.64,143.46,143.44,3.4854]
[1727125272843,9.64,143.46,143.41,9.64]
[1727125273140,9.64,143.47,143.43,9.64]
[1727125273534,9.64,143.47,143.45,3.4852]
[1727125284846,3.4841,143.5,143.44,3.4855]
[1727125285047,9.64,143.48,143.42,9.64]
[1727125285650,9.64,143.48,143.45,3.4852]
[1727125289659,9.64,143.46,143.4,9.64]
[1727125289849,9.64,143.44,143.4,9.64]
[1727125290052,9.64,143.44,143.42,3.4859]
[1727125296964,9.64,143.44,143.41,3.4862]
[1727125300266,9.64,143.42,143.4,3.4864]
[1727125300464,3.4856,143.44,143.39,81.95562211]
[1727125300465,9.64,143.41,143.39,81.95562211]
[1727125300765,9.64,143.41,143.36,9.64]
[1727125301766,9.64,143.41,143.39,3.4867]
[1727125304566,9.64,143.41,143.38,3.4869]
[1727125313582,9.64,143.41,143.39,3.4867]
[1727125313779,1.4188,143.43,143.4,9.64]
[1727125314280,1.4188,143.43,143.41,3.4861]
[1727125321587,1.4188,143.43,143.4,3.4865]
[1727125321779,9.64,143.42,143.4,3.4865]
[1727125323491,9.64,143.42,143.38,9.64]
[1727125323890,9.64,143.42,143.4,3.4863]
[1727125324992,9.64,143.42,143.41,3.4863]
[1727125325383,1.4188,143.43,143.4,3.4863]
[1727125325688,11.0588,143.43,143.4,3.4863]
[1727125326686,1.4188,143.43,143.4,3.4863]
[1727125326986,11.0588,143.43,143.4,3.4863]
[1727125336393,11.0588,143.43,143.41,3.4863]
[1727125338604,1.4188,143.43,143.4,3.4865]
[1727125338797,9.64,143.45,143.41,9.64]
[1727125339104,9.64,143.45,143.44,3.4856]
[1727125339303,9.64,143.47,143.44,3.4856]
[1727125341002,9.64,143.45,143.37,81.97399336]
[1727125341202,9.64,143.45,143.39,9.64]
[1727125341390,9.64,143.43,143.39,9.64]
[1727125342005,9.64,143.43,143.41,3.4861]
[1727125344605,9.64,143.42,143.4,3.4864]
[1727125348514,9.64,143.41,143.37,81.97399336]
[1727125348705,9.64,143.41,143.38,4.82193137]
[1727125349020,9.64,143.4,143.37,81.97399336]
[1727125349216,9.64,143.4,143.38,3.4869]
[1727125350414,9.64,143.4,143.37,81.97399336]
[1727125350712,9.64,143.38,143.37,81.97399336]
[1727125350909,9.64,143.4,143.38,3.4868]
[1727125353720,9.64,143.41,143.38,3.4868]
[1727125358423,7.6056,143.45,143.37,9.64]
[1727125358624,9.64,143.42,143.37,9.64]
[1727125358925,9.64,143.42,143.4,3.4864]
[1727125359111,9.64,143.43,143.38,9.64]
[1727125360124,9.64,143.43,143.4,3.4864]
[1727125360418,9.64,143.42,143.4,3.4864]
[1727125364621,9.64,143.44,143.4,9.64]
[1727125365223,9.64,143.44,143.42,3.4859]
[1727125369530,4.1202,143.45,143.41,9.64]
[1727125369727,1.3347,143.45,143.41,9.64]
[1727125370632,1.3347,143.45,143.42,9.64]
[1727125371834,1.3347,143.45,143.43,3.4856]
[1727125375632,9.64,143.46,143.44,3.4856]
[1727125380641,9.64,143.46,143.43,3.4857]
[1727125381830,9.64,143.45,143.42,3.4859]
[1727125382032,9.64,143.45,143.39,9.64]
[1727125382233,9.64,143.45,143.4,11.49461771]
[1727125382443,9.64,143.45,143.41,4.82389951]
[1727125382630,11.0987,143.45,143.41,3.4861]
[1727125386940,14.584,143.45,143.4,3.4864]
[1727125387143,11.0987,143.45,143.4,3.4864]
[1727125387735,11.0987,143.45,143.41,3.4862]
[1727125400053,11.0987,143.45,143.42,3.486]
[1727125414764,9.64,143.43,143.41,3.4862]
[1727125415555,9.64,143.42,143.33,2.6103]
[1727125415760,9.64,143.42,143.36,9.64]
[1727125415957,1.4183,143.44,143.37,6.66917171]
[1727125415958,9.64,143.4,143.37,6.66917171]
[1727125416156,9.64,143.4,143.36,9.64]
[1727125416460,9.64,143.4,143.37,4.82289039]
[1727125416651,9.64,143.4,143.38,3.4869]
[1727125425264,1.4183,143.44,143.39,9.64]
[1727125425463,11.0987,143.45,143.41,9.64]
[1727125425859,11.0987,143.45,143.41,13.1261]
[1727125428971,9.64,143.44,143.41,3.4861]
[1727125429266,9.64,143.43,143.4,3.4864]
[1727125430962,1.4587,143.45,143.41,3.4862]
[1727125431154,1.4587,143.45,143.4,9.64]
[1727125431355,11.0987,143.45,143.4,9.64]
[1727125432170,1.4587,143.45,143.41,9.64]
[1727125433764,1.4587,143.45,143.42,3.4859]
[1727125435677,11.0987,143.45,143.42,3.4859]
[1727125438978,1.4587,143.45,143.4,9.64]
[1727125439168,11.0987,143.45,143.4,9.64]
[1727125439981,11.0987,143.45,143.42,3.486]
[1727125440681,1.16,143.43,143.42,3.486]
[1727125441682,1.16,143.43,143.41,3.4862]
[1727125443186,1.16,143.43,143.4,3.4864]
[1727125445186,1.16,143.43,143.41,3.4861]
[1727125446979,1.16,143.43,143.42,3.486]
[1727125447997,5.1,143.43,143.42,3.486]
[1727125452205,5.1,143.43,143.41,3.4862]
[1727125454602,7.38,143.43,143.41,3.4862]
[1727125459494,7.38,143.43,143.42,3.486]
[1727125459697,7.38,143.43,143.42,13.126]
[1727125462906,2.7434,143.5,143.47,3.4847]
[1727125463206,2.7434,143.5,143.47,9.64]
[1727125463804,2.7434,143.5,143.47,13.1248]
[1727125466908,12.3834,143.5,143.47,3.4848]
[1727125468309,2.7434,143.5,143.47,13.1248]
[1727125468511,1.3309,143.5,143.48,3.4846]
[1727125471207,9.64,143.52,143.48,3.4846]
[1727125474020,9.64,143.52,143.47,13.1247]
[1727125474215,9.64,143.51,143.47,13.1247]
[1727125483817,9.64,143.51,143.47,3.4847]
[1727125484324,9.64,143.5,143.43,2.637]
[1727125484522,9.64,143.5,143.45,9.64]
[1727125484914,9.64,143.5,143.45,13.1251]
[1727125485418,11.0142,143.5,143.45,9.64]
[1727125486117,9.64,143.49,143.45,13.1252]
[1727125487619,12.3712,143.5,143.45,13.1252]
[1727125489822,1.14,143.49,143.45,13.1252]
[1727125491121,1.14,143.49,143.46,3.485]
[1727125494527,1.14,143.49,143.46,13.125]
[1727125501938,3.31,143.49,143.46,13.125]
[1727125509534,3.31,143.49,143.46,3.485]
[1727125515542,3.31,143.49,143.47,3.4848]
[1727125516351,3.31,143.49,143.46,13.125]
[1727125517952,3.31,143.49,143.46,9.64]
[1727125518153,3.31,143.49,143.48,9.64]
[1727125519853,3.31,143.49,143.48,13.1246]
[1727125522155,3.84,143.49,143.48,13.1246]
[1727125522349,0.3709,143.49,143.48,13.1246]
[1727125522949,2.7111,143.55,143.48,9.64]
[1727125523152,2.7111,143.55,143.51,9.64]
[1727125523456,12.3511,143.55,143.51,13.1238]
[1727125523957,12.3511,143.55,143.5,9.64]
[1727125524148,9.64,143.54,143.5,9.64]
[1727125528947,6.194,143.55,143.5,9.64]
[1727125529154,15.834,143.55,143.5,9.64]
[1727125530454,15.834,143.55,143.5,13.124]
[1727125543873,12.3511,143.55,143.51,13.1237]
[1727125544075,12.3511,143.55,143.5,9.64]
[1727125544276,2.7111,143.55,143.5,9.64]
[1727125544569,12.3511,143.55,143.5,9.64]
[1727125544972,15.834,143.55,143.5,13.1239]
[1727125546774,3.4832,143.54,143.49,13.1242]
[1727125553181,15.8341,143.55,143.5,13.1241]
[1727125555775,2.7111,143.55,143.5,9.64]
[1727125556080,2.7111,143.55,143.52,9.64]
[1727125557173,12.3511,143.55,143.51,3.4837]
[1727125559284,12.3511,143.55,143.5,13.124]
[1727125565085,9.64,143.52,143.45,3.4852]
[1727125565278,9.64,143.51,143.45,9.64]
[1727125565689,9.64,143.51,143.46,3.4849]
[1727125566279,9.64,143.51,143.47,3.4848]
[1727125570088,9.64,143.5,143.46,3.485]
[1727125570284,9.64,143.5,143.43,6.66920441]
[1727125570588,9.64,143.48,143.42,70.34069859]
[1727125570886,9.64,143.48,143.44,3.4855]
[1727125571091,12.5323,143.49,143.44,9.64]
[1727125573888,12.5323,143.49,143.44,13.1254]
[1727125574282,9.64,143.48,143.44,3.4854]
[1727125574476,2.8923,143.49,143.44,3.4854]
[1727125574684,9.64,143.48,143.44,3.4854]
[1727125575784,9.64,143.48,143.45,3.4853]
[1727125590197,9.64,143.48,143.44,3.4855]
[1727125592097,9.64,143.48,143.43,13.1257]
[1727125592404,9.64,143.47,143.43,3.4857]
[1727125607718,9.64,143.47,143.44,3.4855]
[1727125608923,2.8923,143.49,143.48,3.4846]
[1727125609221,9.64,143.51,143.47,9.64]
[1727125609417,9.64,143.51,143.47,13.1247]
[1727125614217,9.64,143.51,143.48,3.4846]
[1727125615628,3.4833,143.54,143.48,3.4846]
[1727125615924,9.64,143.52,143.48,3.4846]
[1727125616118,4.2395,143.57,143.49,9.64]
[1727125616527,9.64,143.54,143.49,9.64]
[1727125617227,9.64,143.54,143.49,13.1242]
[1727125618228,9.64,143.53,143.49,3.4842]
[1727125619336,9.64,143.53,143.49,13.1242]
[1727125622233,9.64,143.53,143.49,3.4842]
[1727125622644,9.64,143.53,143.49,13.1242]
[1727125624537,9.64,143.54,143.5,13.124]
[1727125624732,13.1227,143.56,143.5,9.64]
[1727125624938,13.8795,143.57,143.52,9.64]
[1727125625345,13.8795,143.57,143.52,13.1236]
[1727125625938,13.8795,143.57,143.53,3.4833]
[1727125626946,13.8795,143.57,143.54,3.4831]
[1727125627335,4.2395,143.57,143.54,9.64]
[1727125627741,4.2395,143.57,143.55,3.4827]
[1727125629141,4.2395,143.57,143.54,13.123]
[1727125630746,2.8441,143.57,143.54,9.64]
[1727125631543,2.8441,143.57,143.56,3.4826]
[1727125632655,2.8441,143.57,143.54,9.64]
[1727125632656,2.8441,143.57,143.55,3.4828]
[1727125633952,2.8441,143.57,143.54,13.123]
[1727125639156,3.482,143.59,143.54,13.123]
[1727125640354,3.4822,143.58,143.54,9.64]
[1727125641356,9.64,143.55,143.46,6.62259232]
[1727125641655,9.64,143.55,143.41,304.65066956]
[1727125641656,9.64,143.54,143.49,13.1243]
[1727125643261,13.1231,143.54,143.49,9.64]
[1727125643957,9.64,143.53,143.48,13.1244]
[1727125644259,15.9859,143.53,143.48,9.64]
[1727125644456,12.5025,143.53,143.48,9.64]
[1727125645069,12.5025,143.53,143.46,3.43556144]
[1727125645272,12.5025,143.53,143.48,9.64]
[1727125645863,12.5025,143.53,143.48,13.1246]
[1727125646874,15.9861,143.53,143.47,3.4847]
[1727125647064,15.9861,143.53,143.48,9.64]
[1727125648574,15.986,143.53,143.48,9.64]
[1727125649466,3.4836,143.52,143.47,9.64]
[1727125649666,9.64,143.5,143.43,4.79683444]
[1727125649866,13.1242,143.5,143.44,9.64]
[1727125650067,1.4244,143.52,143.44,9.64]
[1727125650262,9.64,143.5,143.45,3.4853]
[1727125653173,13.124,143.51,143.46,3.4851]
[1727125653673,4.9081,143.52,143.46,13.1251]
[1727125653877,9.64,143.51,143.46,13.1251]
[1727125654973,13.1239,143.51,143.46,13.1251]
[1727125658478,9.64,143.5,143.46,3.4851]
[1727125660178,1.4244,143.52,143.48,3.4844]
[1727125660372,1.4244,143.52,143.49,9.64]
[1727125660677,2.8625,143.53,143.49,9.64]
[1727125661384,2.8625,143.53,143.49,13.1242]
[1727125663771,2.8625,143.53,143.49,3.4842]
[1727125663978,2.8625,143.53,143.48,3.4845]
[1727125663979,9.64,143.52,143.48,3.4845]
[1727125664380,9.64,143.52,143.47,9.64]
[1727125664975,9.64,143.52,143.48,3.4845]
[1727125667578,12.5025,143.53,143.48,3.4845]
[1727125669285,2.8625,143.53,143.48,13.1245]
[1727125669476,12.5025,143.53,143.48,13.1245]
[1727125674081,9.64,143.52,143.43,6.64733649]
[1727125674381,2.8625,143.53,143.46,9.64]
[1727125674382,9.64,143.51,143.46,9.64]
[1727125674684,13.1239,143.51,143.46,13.1249]
[1727125674883,9.64,143.51,143.46,13.1249]
[1727125675478,9.64,143.51,143.46,9.64]
[1727125675679,9.64,143.51,143.45,13.1251]
[1727125676281,9.64,143.5,143.45,13.1251]
[1727125676884,13.1241,143.51,143.45,13.1251]
[1727125677986,13.1241,143.51,143.46,3.485]
[1727125678185,9.64,143.51,143.46,3.485]
[1727125679082,9.64,143.51,143.46,13.125]
[1727125679286,9.64,143.51,143.47,3.4848]
[1727125685488,3.4839,143.51,143.46,3.485]
[1727125685690,9.64,143.5,143.46,3.485]
[1727125685996,9.64,143.5,143.46,13.125]
[1727125691093,9.64,143.5,143.46,3.485]
[1727125691399,9.64,143.5,143.45,13.1252]
[1727125691694,9.64,143.5,143.45,9.64]
[1727125691893,9.64,143.5,143.46,3.4849]
[1727125693796,3.4837,143.52,143.46,3.4849]
[1727125693997,9.64,143.5,143.46,3.4849]
[1727125699102,9.64,143.49,143.44,9.64]
[1727125699508,3.4841,143.5,143.45,3.4853]
[1727125699900,13.1241,143.5,143.45,3.4853]
[1727125700402,9.64,143.5,143.45,3.4853]
[1727125701406,4.2378,143.53,143.46,9.64]
[1727125701701,9.64,143.52,143.46,9.64]
[1727125702105,3.4836,143.52,143.46,13.1249]
[1727125702302,9.64,143.51,143.46,13.1249]
[1727125703207,9.64,143.51,143.47,3.4848]
[1727125703403,4.2378,143.53,143.5,9.64]
[1727125703602,2.8625,143.53,143.5,9.64]
[1727125704802,12.5025,143.53,143.49,3.4842]
[1727125709903,12.5025,143.53,143.48,3.4845]
[1727125710208,12.5025,143.53,143.48,13.1245]
[1727125710412,9.64,143.52,143.48,13.1245]
[1727125713213,9.64,143.52,143.49,4.82109908]
[1727125713413,9.64,143.52,143.48,13.1245]
[1727125713714,9.64,143.52,143.49,4.82109911]
[1727125713911,9.64,143.52,143.48,13.1245]
[1727125715208,9.64,143.52,143.48,3.4845]
[1727125715811,9.64,143.52,143.47,13.1248]
[1727125716009,9.64,143.51,143.47,3.4848]
[1727125728528,9.64,143.51,143.48,4.8232564]
[1727125728725,9.64,143.51,143.47,3.4848]
[1727125729131,9.64,143.51,143.48,4.82318968]
[1727125729332,9.64,143.51,143.47,3.4848]
[1727125729539,9.64,143.51,143.48,4.82325441]
[1727125729740,9.64,143.51,143.47,3.4848]
[1727125730039,9.64,143.51,143.48,4.82332336]
[1727125730238,9.64,143.51,143.47,3.4848]
[1727125730440,9.64,143.51,143.48,4.82342354]
[1727125730631,9.64,143.51,143.47,3.4848]
[1727125730832,9.64,143.51,143.48,4.82342354]
[1727125731035,9.64,143.51,143.47,3.4848]
[1727125731332,9.64,143.51,143.48,4.82339802]
[1727125731533,9.64,143.49,143.46,3.4849]
[1727125731837,9.64,143.49,143.47,4.82398792]
[1727125732035,9.64,143.49,143.46,3.4849]
[1727125732234,9.64,143.49,143.47,4.82400877]
[1727125732638,9.64,143.49,143.46,3.4849]
[1727125733442,9.64,143.49,143.47,4.82407129]
[1727125733741,9.64,143.49,143.46,3.4849]
[1727125733943,9.64,143.49,143.47,4.82391706]
[1727125734130,9.64,143.49,143.46,3.4849]
[1727125734335,9.64,143.49,143.47,4.82397676]
[1727125734532,9.64,143.49,143.47,3.4848]
[1727125734932,9.64,143.49,143.45,9.64]
[1727125735132,9.64,143.5,143.46,10.15579858]
[1727125735338,9.64,143.5,143.46,3.4849]
[1727125735637,9.64,143.5,143.46,8.30885238]
[1727125735932,9.64,143.5,143.46,3.4849]
[1727125736141,9.64,143.5,143.47,4.82390652]
[1727125736531,9.64,143.5,143.46,3.4849]
[1727125736734,9.64,143.5,143.47,4.82473538]
[1727125736936,9.64,143.5,143.46,3.4849]
[1727125737145,9.64,143.5,143.47,4.82481242]
[1727125737440,9.64,143.5,143.46,3.4849]
[1727125737640,9.64,143.5,143.47,4.82472141]
[1727125737839,9.64,143.5,143.46,3.4849]
[1727125738039,9.64,143.5,143.47,4.8246547]
[1727125738245,9.64,143.5,143.46,3.4849]
[1727125739040,9.64,143.51,143.47,17.94946228]
[1727125739242,9.64,143.51,143.47,13.1248]
[1727125741241,2.8625,143.53,143.48,3.4844]
[1727125741449,9.64,143.52,143.48,3.4844]
[1727125742942,9.64,143.51,143.48,3.4844]
[1727125747554,9.64,143.52,143.48,3.4844]
[1727125753555,2.8625,143.53,143.51,9.64]
[1727125753854,1.4133,143.55,143.52,9.64]
[1727125754756,1.4133,143.55,143.52,13.1236]
[1727125754954,1.4133,143.55,143.52,9.64]
[1727125756758,1.4133,143.55,143.52,13.1236]
[1727125763464,9.64,143.53,143.42,60.69432485]
[1727125763662,9.64,143.51,143.47,9.64]
[1727125763861,9.64,143.51,143.48,11.48191857]
[1727125764171,9.64,143.51,143.48,8.30267944]
[1727125764372,9.64,143.51,143.45,3.5715692]
[1727125764664,6.22743259,143.54,143.48,9.64]
[1727125764864,9.64,143.5,143.46,4.81861244]
[1727125765068,9.64,143.49,143.42,60.69432485]
[1727125765260,9.64,143.47,143.43,11.48583854]
[1727125765463,9.64,143.47,143.43,4.82018081]
[1727125765664,9.64,143.47,143.44,4.82018081]
[1727125766262,9.64,143.47,143.42,64.18022485]
[1727125766454,9.64,143.47,143.42,73.82022485]
[1727125766656,9.64,143.47,143.43,4.82189186]
[1727125766970,9.64,143.47,143.42,73.82022485]
[1727125767566,4.2037,143.48,143.42,73.82022485]
[1727125767866,13.8437,143.48,143.43,13.1257]
[1727125768068,9.64,143.52,143.47,9.64]
[1727125768371,9.64,143.52,143.47,13.1248]
[1727125768569,13.19389084,143.52,143.47,13.1248]
[1727125768965,9.64,143.51,143.46,9.64]
[1727125770873,9.64,143.51,143.46,13.125]
[1727125771168,9.64,143.51,143.46,9.64]
[1727125772065,112.09637253,143.56,143.5,9.64]
[1727125772373,102.45637253,143.56,143.54,9.64]
[1727125772873,4.2348,143.6,143.55,9.64]
[1727125773170,13.8748,143.6,143.55,9.64]
[1727125773566,13.8748,143.6,143.55,13.1227]
[1727125774264,13.8748,143.6,143.56,3.4826]
[1727125776868,13.8748,143.6,143.52,4.80626664]
[1727125777067,13.8748,143.6,143.55,9.64]
[1727125777769,13.8748,143.6,143.56,3.4826]
[1727125779876,13.8748,143.6,143.56,13.1226]
[1727125784281,13.8748,143.6,143.56,3.4826]
[1727125784482,9.64,143.59,143.55,13.1227]
[1727125784885,9.64,143.59,143.55,3.4827]
[1727125787990,9.64,143.59,143.48,6.63425422]
[1727125787991,9.64,143.58,143.48,6.63425422]
[1727125788187,9.64,143.58,143.38,51.75283403]
[1727125788188,9.64,143.58,143.53,9.64]
[1727125788393,9.64,143.58,143.53,13.1232]
[1727125790594,9.64,143.57,143.52,3.4835]
[1727125790789,9.64,143.57,143.53,9.64]
[1727125791180,13.1222,143.58,143.53,9.64]
[1727125791491,9.64,143.58,143.53,13.1233]
[1727125793297,13.1222,143.58,143.53,13.1233]
[1727125794190,9.64,143.58,143.53,13.1233]
[1727125799698,9.64,143.57,143.53,9.64]
[1727125799898,9.64,143.57,143.52,13.1236]
[1727125809711,9.64,143.57,143.53,9.64]
[1727125810608,9.64,143.57,143.53,13.1234]
[1727125810814,3.4823,143.58,143.53,13.1234]
[1727125811105,13.1223,143.58,143.53,13.1234]
[1727125811902,13.122,143.59,143.54,13.123]
[1727125812105,9.64,143.59,143.54,9.64]
[1727125812607,9.64,143.59,143.55,3.4827]
[1727125813604,13.1219,143.59,143.55,3.4827]
[1727125814813,6.9579,143.72,143.58,9.64]
[1727125815109,241.3856,143.79,143.6,9.64]
[1727125815110,9.64,143.65,143.6,9.64]
[1727125815607,9.64,143.65,143.61,3.4812]
[1727125819221,6.2601,143.66,143.62,3.4812]
[1727125819516,2.7798,143.66,143.62,3.4812]
[1727125820117,2.7798,143.66,143.63,3.4809]
[1727125821914,15.9,143.66,143.63,3.4809]
[1727125822315,6.26,143.66,143.63,3.4809]
[1727125822515,15.9,143.66,143.63,3.4809]
[1727125824020,13.1205,143.65,143.62,3.4811]
[1727125824221,9.64,143.64,143.62,3.4811]
[1727125825426,13.1205,143.65,143.62,3.4811]
[1727125826227,13.1205,143.65,143.6,9.64]
[1727125826228,13.1205,143.65,143.61,3.4813]
[1727125828820,9.64,143.63,143.49,83.58]
[1727125829018,3.47370254,143.68,143.62,9.64]
[1727125829225,9.64,143.68,143.62,9.64]
[1727125829421,16.66709729,143.68,143.63,3.4809]
[1727125836333,16.66709729,143.68,143.59,3.49679576]
[1727125836334,4.0654,143.76,143.66,9.64]
[1727125836632,9.64,143.73,143.68,9.64]
[1727125836929,9.64,143.73,143.69,3.4793]
[1727125838333,9.64,143.73,143.7,3.4792]
[1727125838532,13.1181,143.75,143.7,3.4792]
[1727125838728,4.0654,143.76,143.73,3.4784]
[1727125838935,2.6973,143.76,143.73,9.64]
[1727125839132,1.3343,143.76,143.73,9.64]
[1727125839332,1.3343,143.76,143.66,60.59295784]
[1727125839333,1.3343,143.76,143.74,13.1181]
[1727125840227,1.3343,143.76,143.74,3.4781]
[1727125840430,9.64,143.78,143.74,13.1181]
[1727125841326,9.64,143.78,143.74,9.64]
[1727125842437,9.64,143.79,143.74,13.1182]
[1727125843228,9.64,143.79,143.69,3.43367204]
[1727125843229,4.2353,143.8,143.75,13.118]
[1727125844040,4.2353,143.8,143.76,3.4778]
[1727125844241,13.8753,143.8,143.75,9.64]
[1727125845340,13.8753,143.8,143.75,13.118]
[1727125847341,4.2353,143.8,143.76,9.64]
[1727125847541,4.2353,143.8,143.78,9.64]
[1727125847847,2.7673,143.8,143.78,9.64]
[1727125848239,2.7673,143.8,143.78,13.1172]
[1727125848635,102.37152909,143.81,143.79,9.64]
[1727125848838,9.64,143.85,143.8,13.1168]
[1727125849544,2.8205,143.86,143.8,13.1168]
[1727125849743,9.64,143.85,143.8,13.1168]
[1727125849944,9.64,143.85,143.81,9.64]
[1727125850142,9.64,143.85,143.81,13.1165]
[1727125852851,2.8205,143.86,143.81,9.64]
[1727125853154,12.4605,143.86,143.81,9.64]
[1727125853536,12.4605,143.86,143.82,3.4763]
[1727125855943,2.8205,143.86,143.83,3.476]